bitfinex-derivatives/quotes_SOLF0:USTF0_20241212
["timestamp","ask_amount","ask_price","bid_price","bid_amount"]
[1734031605529,0.66406684,230.86,230.8,22.34805153]
[1734031605920,11.89304555,230.87,230.8,22.34805153]
[1734031606121,1.32804781,230.86,230.8,22.34805153]
[1734031606328,0.66402197,230.85,230.8,22.34805153]
[1734031606528,2.1657,230.81,230.8,22.34805153]
[1734031607631,14.05874555,230.81,230.8,22.34805153]
[1734031607828,14.72263923,230.81,230.8,22.34805153]
[1734031609031,2.1667,230.71,230.68,4.0177]
[1734031609234,2.3,230.75,230.68,4.0177]
[1734031609635,2.1666,230.72,230.68,4.0177]
[1734031611536,2.1666,230.72,230.68,15.91074555]
[1734031612332,2.1665,230.73,230.68,18.07764555]
[1734031612727,2.3,230.75,230.68,15.91074555]
[1734031613435,2.1667,230.71,230.68,15.91074555]
[1734031615133,2.1665,230.73,230.69,2.1668]
[1734031616837,2.1665,230.72,230.68,18.07764555]
[1734031617227,2.3,230.79,230.68,15.91074555]
[1734031617428,2.1664,230.74,230.69,2.1667]
[1734031617633,2.1664,230.74,230.68,15.91074555]
[1734031620238,2.3,230.79,230.68,15.91074555]
[1734031621329,2.1665,230.73,230.68,15.91074555]
[1734031622234,2.1663,230.75,230.71,2.1666]
[1734031623336,2.1663,230.75,230.72,2.1665]
[1734031623534,147.48897289,230.84,230.71,11.89304555]
[1734031623737,2.3,230.82,230.71,11.89304555]
[1734031623933,2.3,230.82,230.72,2.1665]
[1734031624236,2.1662,230.76,230.72,2.1665]
[1734031624441,2.3,230.82,230.71,11.89304555]
[1734031624831,11.89304555,230.84,230.71,11.89304555]
[1734031625038,2.166,230.78,230.74,2.1663]
[1734031625236,2.3,230.83,230.71,11.89304555]
[1734031625637,2.3,230.83,230.73,2.1664]
[1734031626429,2.1661,230.78,230.71,11.89304555]
[1734031627430,2.1659,230.79,230.71,11.89304555]
[1734031627631,2.3,230.82,230.71,11.89304555]
[1734031628029,2.1658,230.81,230.77,2.1661]
[1734031628435,2.1653,230.85,230.81,2.1657]
[1734031628636,149.78897289,230.87,230.74,14.19304555]
[1734031628835,176.2445498,230.89,230.77,11.89304555]
[1734031629035,176.2445498,230.89,230.81,2.1657]
[1734031629036,2.1652,230.86,230.81,2.1657]
[1734031629240,2.3,230.88,230.78,4.0688]
[1734031630845,2.1653,230.85,230.8,2.1657]
[1734031631032,2.1653,230.85,230.78,4.0688]
[1734031632140,2.1652,230.86,230.78,4.0688]
[1734031632533,2.3,230.89,230.78,9.20610389]
[1734031632734,2.1652,230.87,230.78,9.20610389]
[1734031633238,2.1652,230.87,230.83,2.1655]
[1734031633841,2.3,230.89,230.78,9.20610389]
[1734031634038,2.165,230.89,230.85,2.1653]
[1734031634235,2.165,230.89,230.8,11.89304555]
[1734031634843,149.65397289,230.89,230.83,2.1655]
[1734031635042,187.76340045,230.89,230.81,2.3]
[1734031635245,38.10942756,230.88,230.81,2.3]
[1734031635442,40.27442756,230.89,230.84,2.1653]
[1734031635647,40.27442756,230.89,230.81,2.3]
[1734031635946,2.165,230.89,230.81,2.3]
[1734031636648,2.165,230.89,230.85,2.1653]
[1734031637148,95.72533618,230.9,230.81,2.1657]
[1734031637149,107.61838173,230.9,230.81,2.1657]
[1734031637339,107.61838173,230.9,230.78,9.20610389]
[1734031638646,2.1651,230.87,230.79,11.89304555]
[1734031639641,2.1651,230.87,230.84,2.1654]
[1734031640448,2.1651,230.88,230.81,2.1656]
[1734031640651,2.1651,230.88,230.79,11.89304555]
[1734031641042,2.1651,230.88,230.84,2.1653]
[1734031641245,2.1651,230.87,230.84,2.1653]
[1734031642050,2.1651,230.87,230.83,2.1655]
[1734031643144,95.72533618,230.9,230.79,11.89304555]
[1734031643350,107.61838173,230.9,230.78,9.20610389]
[1734031643852,107.61838173,230.9,230.8,2.1658]
[1734031644048,2.1657,230.81,230.78,4.0688]
[1734031644353,11.89304555,230.84,230.7,11.89304555]
[1734031644747,147.48897289,230.82,230.72,2.1665]
[1734031644947,2.3,230.81,230.7,11.89304555]
[1734031645253,149.78897289,230.81,230.7,11.89304555]
[1734031646054,2.1661,230.77,230.73,2.1664]
[1734031646253,2.3,230.76,230.66,4.1388]
[1734031646449,2.1667,230.7,230.66,4.1388]
[1734031646654,2.3,230.75,230.66,4.1388]
[1734031647051,34.85234522,230.77,230.69,0.27837]
[1734031647252,2.28,230.77,230.69,12.17141555]
[1734031647649,2.28,230.77,230.73,2.1664]
[1734031647855,2.28,230.77,230.69,12.17141555]
[1734031648052,2.166,230.78,230.73,2.1664]
[1734031648253,2.166,230.78,230.69,12.17141555]
[1734031648652,2.166,230.78,230.73,2.1664]
[1734031649755,2.166,230.78,230.74,2.1663]
[1734031650450,76.31017073,230.83,230.72,11.89304555]
[1734031650451,36.85234124,230.8,230.72,11.89304555]
[1734031650656,2.1659,230.8,230.72,11.89304555]
[1734031651254,147.48897289,230.82,230.72,11.89304555]
[1734031651455,2.1657,230.82,230.72,11.89304555]
[1734031651650,2.1657,230.82,230.77,2.166]
[1734031652750,2.1657,230.82,230.78,2.1659]
[1734031654057,147.48897289,230.83,230.78,2.1659]
[1734031654253,147.48897289,230.83,230.72,11.89304555]
[1734031654451,147.48897289,230.82,230.72,11.89304555]
[1734031654653,2.1659,230.79,230.72,11.89304555]
[1734031655150,2.1659,230.79,230.75,2.1662]
[1734031655356,2.1659,230.79,230.72,11.89304555]
[1734031656551,2.1659,230.79,230.75,2.1662]
[1734031656756,2.166,230.78,230.75,2.1662]
[1734031656955,34.02424723,230.83,230.75,2.1662]
[1734031657256,147.48897289,230.84,230.75,2.1662]
[1734031657456,2.166,230.78,230.75,2.1662]
[1734031658359,147.48897289,230.84,230.72,11.89304555]
[1734031658663,147.48897289,230.84,230.76,2.1661]
[1734031659261,2.1656,230.82,230.76,2.1661]
[1734031659561,2.28,230.85,230.78,2.166]
[1734031660360,2.1655,230.83,230.75,11.89304555]
[1734031660556,34.03594485,230.85,230.78,11.89304555]
[1734031660763,2.28,230.88,230.78,11.89304555]
[1734031660961,2.28,230.88,230.76,4.1102]
[1734031661162,149.76897289,230.88,230.79,2.1659]
[1734031662456,147.48897289,230.87,230.79,2.1659]
[1734031663055,2.28,230.88,230.76,2.7632]
[1734031663056,181.53400348,230.86,230.76,2.7632]
[1734031663262,181.53400348,230.85,230.76,2.7632]
[1734031663461,2.1658,230.81,230.77,2.166]
[1734031665160,2.28,230.83,230.79,2.1658]
[1734031665161,4.4456,230.83,230.79,2.1658]
[1734031665563,4.4456,230.83,230.76,2.7632]
[1734031665767,11.89304555,230.85,230.69,0.27837]
[1734031665969,33.34978099,230.84,230.71,11.89304555]
[1734031666266,33.34978099,230.84,230.74,2.1663]
[1734031666467,2.166,230.79,230.7,13.20724555]
[1734031666660,2.166,230.79,230.74,2.1663]
[1734031666865,2.28,230.81,230.74,2.1663]
[1734031667063,2.1659,230.79,230.74,2.1663]
[1734031667266,7.61696025,230.8,230.7,1.3142]
[1734031667469,2.1664,230.74,230.7,1.3142]
[1734031667665,149.76897289,230.81,230.73,7.61696025]
[1734031667970,40.96674124,230.8,230.73,9.78336025]
[1734031668172,7.61696025,230.8,230.73,9.78336025]
[1734031668470,2.28,230.81,230.75,7.61696025]
[1734031668663,2.1661,230.78,230.75,7.61696025]
[1734031669271,2.1661,230.77,230.75,7.61696025]
[1734031669469,2.1661,230.77,230.73,2.1664]
[1734031669871,2.1661,230.77,230.74,7.61696025]
[1734031670072,2.1661,230.77,230.74,9.78326025]
[1734031670874,2.28,230.81,230.74,7.61696025]
[1734031671473,35.6239264,230.81,230.74,7.61696025]
[1734031671775,2.28,230.81,230.74,7.61696025]
[1734031672277,2.1659,230.79,230.76,2.1661]
[1734031673275,2.1659,230.79,230.76,7.61696025]
[1734031674277,35.63792986,230.81,230.75,2.1663]
[1734031674576,2.28,230.81,230.75,2.1663]
[1734031675676,2.1659,230.79,230.75,2.1663]
[1734031678080,7.61696025,230.8,230.74,9.78326025]
[1734031678284,7.61696025,230.8,230.74,7.61696025]
[1734031678775,40.12564379,230.8,230.74,7.61696025]
[1734031678980,7.61696025,230.8,230.74,7.61696025]
[1734031679278,155.10593314,230.8,230.7,1.3142]
[1734031679477,7.61696025,230.78,230.71,7.61696025]
[1734031679878,155.10593314,230.78,230.71,7.61696025]
[1734031680283,2.1665,230.73,230.71,7.61696025]
[1734031684178,2.1663,230.75,230.71,7.61696025]
[1734031684346,147.48897289,230.79,230.73,7.61696025]
[1734031684553,32.52516996,230.78,230.73,7.61696025]
[1734031684784,2.1661,230.77,230.73,9.78336025]
[1734031684983,2.1661,230.77,230.73,7.61696025]
[1734031685883,7.61696025,230.81,230.73,7.61696025]
[1734031686085,7.61696025,230.81,230.7,1.3142]
[1734031686276,7.61696025,230.81,230.73,7.61696025]
[1734031686775,2.166,230.79,230.75,2.1662]
[1734031686979,7.61696025,230.81,230.75,2.1662]
[1734031687380,2.26,230.83,230.73,7.61696025]
[1734031687580,9.87696025,230.83,230.78,2.166]
[1734031688288,7.61696025,230.83,230.78,2.166]
[1734031688584,2.1657,230.81,230.78,2.166]
[1734031689185,2.1656,230.82,230.78,2.166]
[1734031689779,31.53037885,230.83,230.81,2.1657]
[1734031689985,2.1654,230.84,230.77,7.61696025]
[1734031690382,7.61696025,230.85,230.77,7.61696025]
[1734031690584,2.1658,230.8,230.71,2.26]
[1734031690786,149.74897289,230.86,230.71,2.26]
[1734031690787,7.61696025,230.79,230.71,2.26]
[1734031690984,7.61696025,230.77,230.7,8.93116025]
[1734031691288,7.61696025,230.77,230.71,2.1666]
[1734031691689,7.61696025,230.77,230.7,8.93116025]
[1734031691890,149.74897289,230.81,230.66,3.6842]
[1734031691891,7.61696025,230.75,230.66,3.6842]
[1734031692091,176.98676747,230.85,230.66,1.4242]
[1734031692092,7.61696025,230.73,230.66,1.4242]
[1734031693188,2.26,230.76,230.66,1.4242]
[1734031694394,2.1667,230.71,230.66,1.4242]
[1734031697196,2.1667,230.71,230.66,3.5913]
[1734031697597,2.1667,230.7,230.66,3.5913]
[1734031698299,2.1664,230.73,230.68,2.1669]
[1734031698502,2.1664,230.73,230.66,13.33300706]
[1734031699403,2.1664,230.73,230.68,2.1669]
[1734031699591,2.1664,230.73,230.66,13.33300706]
[1734031699794,2.1664,230.73,230.68,2.1668]
[1734031699992,2.26,230.76,230.68,2.1668]
[1734031700490,2.1666,230.72,230.68,2.1668]
[1734031700896,2.26,230.76,230.64,1.4028]
[1734031701093,11.90880706,230.74,230.64,1.4028]
[1734031701697,11.90880706,230.68,230.63,0.23077]
[1734031701894,2.26,230.67,230.63,0.23077]
[1734031702898,2.1673,230.64,230.63,0.23077]
[1734031703201,2.26,230.67,230.55,1.3475]
[1734031704099,2.1673,230.65,230.57,11.90880706]
[1734031704703,2.1673,230.65,230.6,2.1676]
[1734031704897,2.1673,230.65,230.57,17.10877344]
[1734031705494,2.26,230.67,230.57,5.19996638]
[1734031705692,2.26,230.67,230.48,47.31925587]
[1734031705901,2.26,230.67,230.53,11.90880706]
[1734031706096,2.1676,230.61,230.56,2.168]
[1734031706299,2.1676,230.61,230.56,2.37793]
[1734031707098,2.1676,230.61,230.57,2.1679]
[1734031707307,2.1677,230.6,230.56,0.20993]
[1734031708607,2.1677,230.6,230.56,2.37793]
[1734031709200,2.26,230.67,230.56,0.20993]
[1734031709806,7.40725666,230.67,230.56,0.20993]
[1734031710106,2.1679,230.57,230.56,0.20993]
[1734031710298,4.4079,230.57,230.56,0.20993]
[1734031710500,2.24,230.57,230.41,14.60030706]
[1734031710810,2.1689,230.47,230.41,11.90880706]
[1734031711004,2.24,230.49,230.39,1.3684]
[1734031711514,249.24604219,230.65,230.42,11.90880706]
[1734031711810,11.90880706,230.59,230.45,11.90880706]
[1734031712110,2.24,230.58,230.45,11.90880706]
[1734031712306,2.1687,230.5,230.45,14.07790706]
[1734031712504,2.24,230.52,230.45,11.90880706]
[1734031713104,2.1686,230.5,230.45,14.07790706]
[1734031714304,2.1686,230.5,230.42,11.90880706]
[1734031714512,2.1688,230.49,230.43,2.1692]
[1734031714706,2.1688,230.49,230.42,11.90880706]
[1734031715306,2.1688,230.49,230.44,2.1691]
[1734031715609,2.24,230.52,230.39,3.6084]
[1734031715906,2.24,230.52,230.39,15.51720706]
[1734031716111,2.1692,230.44,230.39,15.51720706]
[1734031716312,2.24,230.47,230.39,13.27720706]
[1734031716507,2.24,230.47,230.38,7.48872274]
[1734031716712,2.24,230.47,230.4,2.1695]
[1734031718603,2.1691,230.45,230.4,2.1695]
[1734031721611,4.409,230.47,230.41,2.1694]
[1734031722113,2.24,230.47,230.41,2.1694]
[1734031723617,2.169,230.46,230.41,2.1694]
[1734031725415,2.169,230.46,230.39,11.90880706]
[1734031725719,2.169,230.46,230.42,2.1693]
[1734031727110,2.1691,230.45,230.4,2.1695]
[1734031727310,7.63821594,230.46,230.38,5.31902274]
[1734031727510,7.63821594,230.46,230.37,1.3205]
[1734031727715,2.1694,230.42,230.38,9.80791594]
[1734031729117,2.1694,230.42,230.38,2.1697]
[1734031729415,2.1694,230.42,230.38,9.80791594]
[1734031729717,2.1695,230.41,230.38,7.63821594]
[1734031729914,2.1695,230.41,230.36,2.6899]
[1734031729915,7.63821594,230.44,230.36,2.6899]
[1734031730112,7.63821594,230.4,230.36,2.6899]
[1734031730307,2.24,230.42,230.36,2.6899]
[1734031730507,9.87821594,230.42,230.36,2.6899]
[1734031731209,2.24,230.42,230.36,2.6899]
[1734031731411,7.63821594,230.41,230.36,2.6899]
[1734031731617,2.1698,230.37,230.32,2.1703]
[1734031731819,2.1698,230.37,230.34,7.63821594]
[1734031732020,2.24,230.42,230.34,7.63821594]
[1734031732219,7.63821594,230.41,230.34,7.63821594]
[1734031732419,7.63821594,230.41,230.36,7.63821594]
[1734031732615,7.63821594,230.41,230.31,5.16996395]
[1734031732818,7.63821594,230.35,230.27,2.8231]
[1734031733013,7.63821594,230.35,229.92,4.337]
[1734031733014,149.0905557,230.38,230.28,7.63821594]
[1734031733319,2.1706,230.3,230.28,7.63821594]
[1734031734216,2.24,230.32,230.24,2.7567]
[1734031734419,2.24,230.32,230.26,7.63821594]
[1734031734822,2.1706,230.29,230.26,7.63821594]
[1734031735219,2.1706,230.29,230.24,2.7567]
[1734031735415,2.1706,230.29,230.24,4.9278]
[1734031736822,2.1706,230.29,230.24,2.7567]
[1734031737624,2.1706,230.29,230.24,4.9277]
[1734031737817,2.24,230.32,230.24,2.7567]
[1734031738524,2.1708,230.27,230.24,2.7567]
[1734031739215,2.24,230.3,230.24,2.7567]
[1734031739421,2.24,230.3,230.24,4.9277]
[1734031739621,2.24,230.3,230.24,2.7567]
[1734031740514,2.24,230.3,230.12,2.24]
[1734031740715,30.35371045,230.3,230.18,11.95055934]
[1734031740915,2.1711,230.25,230.2,2.1714]
[1734031741123,151.3305557,230.3,230.18,11.95055934]
[1734031741626,151.3305557,230.3,230.2,2.1714]
[1734031741821,179.44426615,230.3,230.2,2.1714]
[1734031742222,2.1711,230.25,230.2,2.1714]
[1734031743522,2.1711,230.24,230.2,2.1714]
[1734031744023,149.0905557,230.29,230.2,2.1714]
[1734031744225,28.11866392,230.28,230.2,2.1714]
[1734031744527,2.24,230.27,230.2,2.1714]
[1734031744721,2.1711,230.25,230.2,2.1714]
[1734031745126,4.4108,230.27,230.23,2.1711]
[1734031745523,2.1708,230.27,230.23,2.1711]
[1734031745725,2.24,230.3,230.23,2.1711]
[1734031745921,2.24,230.3,230.24,2.171]
[1734031746428,2.1708,230.28,230.24,2.171]
[1734031747030,2.1706,230.3,230.21,11.95055934]
[1734031747331,2.24,230.32,230.24,11.95055934]
[1734031747721,2.24,230.32,230.22,1.3325]
[1734031747928,2.24,230.34,230.23,11.95055934]
[1734031748132,2.24,230.34,230.23,13.26665934]
[1734031748325,2.1703,230.32,230.26,2.1708]
[1734031748526,2.1703,230.32,230.23,13.26665934]
[1734031749129,2.1703,230.32,230.28,2.1706]
[1734031750036,2.24,230.35,230.23,1.3161]
[1734031750231,11.95055934,230.28,230.07,4.3453]
[1734031750532,11.95055934,230.28,230.15,2.1719]
[1734031750533,2.24,230.27,230.15,2.1719]
[1734031750733,2.24,230.27,230.08,2.6743]
[1734031750929,11.95055934,230.25,230.11,1.3914]
[1734031751129,27.49383424,230.24,230.13,5.1019352]
[1734031751431,149.0905557,230.26,230.13,17.05249454]
[1734031751628,2.1712,230.23,230.14,2.1719]
[1734031751835,2.24,230.27,230.13,5.1019352]
[1734031752033,27.48844949,230.26,230.13,5.1019352]
[1734031752232,27.48844949,230.25,230.13,5.1019352]
[1734031752429,2.46,230.24,230.13,5.1019352]
[1734031752629,2.1715,230.19,230.14,2.172]
[1734031752829,2.46,230.24,230.13,5.1019352]
[1734031753029,29.94719149,230.24,230.11,1.3914]
[1734031753237,29.94719149,230.24,230.11,3.5636]
[1734031753531,29.94719149,230.24,230.12,11.95055934]
[1734031753733,2.1719,230.15,230.11,1.3914]
[1734031754038,2.1719,230.15,230.11,13.34195934]
[1734031754236,2.46,230.19,230.11,1.3914]
[1734031755539,2.46,230.19,230.12,11.95055934]
[1734031755745,2.1719,230.16,230.12,11.95055934]
[1734031755935,2.46,230.19,230.12,11.95055934]
[1734031756238,2.46,230.19,230.11,1.3914]
[1734031756841,2.1718,230.17,230.11,1.3914]
[1734031757133,2.46,230.19,230.09,11.95055934]
[1734031758135,11.95055934,230.17,230.01,1.3189]
[1734031758338,11.95055934,230.14,230.01,14.67235934]
[1734031758640,2.1723,230.12,230.03,5.28173922]
[1734031758843,2.64,230.13,230.03,5.28173922]
[1734031759145,2.1725,230.09,230.03,5.28173922]
[1734031759441,5.14302056,230.22,229.8,5.2108154]
[1734031759442,23.90111868,230.04,229.8,5.2108154]
[1734031759632,2.1746,229.87,229.76,11.95055934]
[1734031759939,11.95055934,229.91,229.78,5.24627731]
[1734031760139,11.95055934,229.88,229.78,5.24627731]
[1734031760335,11.95055934,229.88,229.74,3.6169]
[1734031760543,178.9086669,230.07,229.73,2.7459]
[1734031760544,11.95055934,229.82,229.73,2.7459]
[1734031761134,17.61597156,229.81,229.73,2.7459]
[1734031761336,2.1756,229.76,229.61,17.61597156]
[1734031761534,17.61597156,229.81,229.62,1.3922]
[1734031761735,17.61597156,229.81,229.62,4.0322]
[1734031761941,17.61597156,229.81,229.65,2.1766]
[1734031761942,2.1756,229.77,229.65,2.1766]
[1734031762143,17.61597156,229.81,229.65,2.1766]
[1734031762547,2.1754,229.78,229.64,2.1767]
[1734031762746,17.61597156,229.81,229.65,2.64]
[1734031763649,17.61597156,229.77,229.62,1.3922]
[1734031763942,2.1758,229.74,229.62,1.3922]
[1734031764143,2.64,229.76,229.62,1.3922]
[1734031764338,2.64,229.76,229.36,4.3587]
[1734031764339,17.61597156,229.73,229.37,45.2]
[1734031764543,17.61597156,229.73,229.54,1.3964]
[1734031764949,2.64,229.76,229.54,1.3964]
[1734031764950,2.64,229.76,229.57,17.61597156]
[1734031765145,2.64,229.77,229.61,17.61597156]
[1734031765453,5.16593636,229.78,229.65,17.61597156]
[1734031765647,5.16593636,229.78,229.66,2.82]
[1734031766141,5.16593636,229.78,229.54,4.1876]
[1734031766348,5.16593636,229.78,229.64,17.61597156]
[1734031766550,5.16593636,229.78,229.65,2.82]
[1734031767242,5.16593636,229.78,229.66,4.2016]
[1734031767952,5.16593636,229.78,229.74,2.1758]
[1734031768145,5.16593636,229.78,229.66,4.2016]
[1734031768753,5.16593636,229.78,229.66,1.3816]
[1734031769048,17.61597156,229.77,229.64,2.82]
[1734031769244,17.61597156,229.77,229.6,17.61597156]
[1734031769449,17.61597156,229.77,229.6,20.43597156]
[1734031769750,17.61597156,229.77,229.58,1.3363]
[1734031769947,17.61597156,229.77,229.58,4.1563]
[1734031770151,22.78190792,229.78,229.58,4.1563]
[1734031770452,22.78190792,229.78,229.6,17.61597156]
[1734031770753,5.16593636,229.78,229.68,17.61597156]
[1734031770948,5.16593636,229.78,229.68,20.43597156]
[1734031771442,96.17233636,229.8,229.72,17.61597156]
[1734031771849,2.82,229.87,229.69,2.8066]
[1734031772051,2.82,229.87,229.71,17.61597156]
[1734031772451,2.1747,229.86,229.77,2.1754]
[1734031772647,5.34171828,229.82,229.77,2.1754]
[1734031772851,5.34171828,229.82,229.71,17.61597156]
[1734031773050,4.9946,229.87,229.79,2.1753]
[1734031773853,2.1747,229.86,229.79,2.1753]
[1734031774056,2.82,229.87,229.77,2.1754]
[1734031774256,2.82,229.87,229.74,2.82]
[1734031774452,2.1747,229.86,229.77,2.1754]
[1734031774645,2.82,229.87,229.74,2.82]
[1734031774858,3.19341,229.9,229.75,17.61597156]
[1734031775155,0.37341,229.9,229.75,17.61597156]
[1734031775348,5.57574734,229.9,229.75,17.61597156]
[1734031775546,0.37341,229.9,229.86,2.1746]
[1734031775746,0.37341,229.9,229.83,17.61597156]
[1734031775948,0.37341,229.9,229.84,2.82]
[1734031776150,0.37341,229.9,229.88,2.1744]
[1734031776350,2.82,229.99,229.84,6.8665]
[1734031776550,2.1735,229.98,229.84,6.8665]
[1734031776752,2.1735,229.98,229.88,2.1744]
[1734031776953,1.0,230.08,229.87,17.61597156]
[1734031776954,2.82,230.03,229.87,17.61597156]
[1734031777258,2.1732,230.02,229.87,17.61597156]
[1734031777455,2.82,230.03,229.87,17.61597156]
[1734031777757,5.22138557,230.01,229.87,17.61597156]
[1734031778563,5.22138557,230.01,229.84,4.0465]
[1734031778750,22.83735713,230.01,229.84,4.0465]
[1734031779054,17.61597156,229.97,229.84,4.0465]
[1734031779254,2.82,229.96,229.84,2.6396]
[1734031780055,2.1741,229.92,229.85,2.1747]
[1734031781155,2.1743,229.9,229.84,2.6396]
[1734031781355,2.82,229.96,229.84,1.3246]
[1734031781761,2.1742,229.91,229.85,2.1747]
[1734031781959,2.1742,229.91,229.84,1.3246]
[1734031782163,2.82,229.96,229.84,1.3246]
[1734031782358,2.82,229.96,229.8,4.2502]
[1734031782359,17.61597156,229.93,229.8,1.4302]
[1734031782666,17.61597156,229.89,229.74,5.10028521]
[1734031782865,17.61597156,229.89,229.72,1.4406]
[1734031782866,2.82,229.88,229.72,1.4406]
[1734031783166,2.82,229.88,229.77,2.1755]
[1734031783167,2.1749,229.83,229.77,2.1755]
[1734031783366,2.82,229.88,229.73,5.18277523]
[1734031783768,2.82,229.88,229.75,17.61597156]
[1734031784065,2.1744,229.89,229.8,2.1752]
[1734031784259,2.1744,229.89,229.77,2.82]
[1734031784665,2.1743,229.9,229.79,17.61597156]
[1734031785063,17.61597156,229.97,229.79,17.61597156]
[1734031785363,2.174,229.93,229.83,17.61597156]
[1734031785665,2.82,229.97,229.84,1.3354]
[1734031786259,2.1741,229.93,229.84,1.3354]
[1734031786562,2.82,229.97,229.84,1.3354]
[1734031786765,2.1744,229.89,229.84,1.3354]
[1734031786962,20.43597156,229.97,229.84,1.3354]
[1734031787159,20.43597156,229.97,229.79,17.61597156]
[1734031787368,20.43597156,229.97,229.81,2.1751]
[1734031787666,20.43597156,229.97,229.79,17.61597156]
[1734031787858,2.1744,229.89,229.84,2.1748]
[1734031788062,20.43597156,229.97,229.79,17.61597156]
[1734031788562,2.1746,229.87,229.79,17.61597156]
[1734031788863,20.43597156,229.97,229.79,20.43597156]
[1734031789071,20.43597156,229.97,229.82,2.1749]
[1734031789668,2.174,229.93,229.82,2.1749]
[1734031789859,20.43597156,229.97,229.79,20.43597156]
[1734031790063,17.61597156,229.93,229.8,2.1751]
[1734031790366,17.61597156,229.93,229.77,2.82]
[1734031791170,20.43597156,229.97,229.79,17.61597156]
[1734031791562,20.43597156,229.97,229.85,2.1747]
[1734031791761,2.82,229.97,229.79,17.61597156]
[1734031792465,26.91480506,229.97,229.79,17.61597156]
[1734031792659,149.0905557,229.99,229.83,17.61597156]
[1734031792865,2.82,230.0,229.84,2.7928]
[1734031793061,2.174,229.94,229.87,2.1745]
[1734031793264,26.9906667,230.0,229.84,2.7928]
[1734031793473,151.9105557,230.0,229.84,2.7928]
[1734031793766,2.1743,229.9,229.85,2.1747]
[1734031794968,2.1743,229.9,229.84,4.9676]
[1734031795170,53.17129339,230.0,229.84,2.7928]
[1734031795370,24.19884051,229.99,229.85,1.3375]
[1734031795672,173.28939621,229.99,229.85,1.3375]
[1734031795872,2.1743,229.9,229.85,1.3375]
[1734031796071,24.19884051,229.98,229.85,1.3375]
[1734031796072,149.0905557,229.99,229.85,1.3375]
[1734031796770,149.0905557,229.99,229.86,2.1746]
[1734031796973,149.0905557,229.98,229.86,2.1746]
[1734031797173,2.1742,229.91,229.86,2.1746]
[1734031797370,2.96,229.97,229.85,1.3375]
[1734031797571,149.0905557,229.96,229.85,1.3375]
[1734031797874,173.29001751,229.96,229.85,1.3375]
[1734031798075,173.29001751,229.95,229.85,1.3375]
[1734031798274,24.19946181,229.94,229.85,1.3375]
[1734031798777,173.29001751,229.93,229.79,17.61597156]
[1734031798977,149.0905557,229.92,229.75,17.61597156]
[1734031799273,2.1753,229.8,229.75,19.79167156]
[1734031799679,2.1753,229.8,229.75,2.1757]
[1734031800075,24.19891799,229.87,229.74,1.4363]
[1734031800379,24.19891799,229.87,229.68,2.96]
[1734031800380,2.96,229.85,229.68,2.96]
[1734031800578,2.1759,229.73,229.68,2.96]
[1734031800975,17.99767156,229.84,229.68,2.96]
[1734031801281,34.97534478,229.83,229.68,2.96]
[1734031801480,0.3817,229.84,229.68,2.96]
[1734031801684,178.9086669,229.89,229.75,17.61597156]
[1734031801685,149.0905557,229.87,229.75,17.61597156]
[1734031801973,2.96,229.89,229.77,2.1755]
[1734031802384,2.1751,229.81,229.76,2.1756]
[1734031803575,11.75385513,229.88,229.75,19.01557156]
[1734031803779,2.96,229.89,229.76,1.325]
[1734031803976,2.175,229.82,229.76,1.325]
[1734031804279,5.16286952,229.87,229.76,1.325]
[1734031804675,2.175,229.83,229.77,2.1755]
[1734031805178,11.76481856,229.86,229.76,1.325]
[1734031805380,5.16286952,229.87,229.75,19.01557156]
[1734031805381,5.16286952,229.87,229.75,1.3996]
[1734031805574,11.76026255,229.86,229.75,1.3996]
[1734031805773,5.16286952,229.87,229.75,1.3996]
[1734031806480,5.16286952,229.87,229.75,3.5753]
[1734031806681,5.16286952,229.87,229.75,1.3996]
[1734031806982,29.3677767,229.86,229.67,21.99567156]